bitfinex/quotes_BTCUSD_20220205
["timestamp","ask_amount","ask_price","bid_price","bid_amount"]
[1644078484639,0.004963,41696.0,41689.0,0.27356193]
[1644078485139,0.054963,41696.0,41689.0,0.26856193]
[1644078485338,0.054963,41696.0,41690.0,0.22080485]
[1644078485788,0.004963,41696.0,41690.0,0.22080485]
[1644078486189,0.059979,41695.0,41681.0,0.42148283]
[1644078486989,0.059979,41695.0,41683.0,0.38434642]
[1644078487191,0.059979,41695.0,41688.0,0.23513499]
[1644078490438,0.059979,41695.0,41683.0,0.38434642]
[1644078490636,2.8128899,41690.0,41682.0,0.333989]
[1644078490839,2.8128899,41690.0,41681.0,0.04104329]
[1644078491037,2.8128899,41690.0,41681.0,0.01977964]
[1644078491536,2.8128899,41690.0,41683.0,0.20799007]
[1644078491737,0.44203943,41690.0,41683.0,0.20799007]
[1644078492336,0.059989,41688.0,41683.0,0.20799007]
[1644078492990,0.059995,41687.0,41681.0,0.01977964]
[1644078493190,0.048,41686.0,41674.0,0.395]
[1644078493894,0.3077045,41682.0,41676.0,0.19889039]
[1644078494092,0.3077045,41682.0,41677.0,0.333989]
[1644078494492,0.05,41684.0,41677.0,0.333989]
[1644078494898,0.048,41686.0,41678.0,0.24560246]
[1644078495099,0.107985,41691.0,41679.0,0.333989]
[1644078495294,0.11988491,41693.0,41677.0,0.24573456]
[1644078495493,0.21988491,41693.0,41677.0,0.24573456]
[1644078495694,0.21633269,41692.0,41684.0,0.38586084]
[1644078495894,0.004963,41691.0,41684.0,0.38586084]
[1644078496093,0.004963,41689.0,41684.0,0.38586084]
[1644078496495,0.044963,41690.0,41684.0,0.38586084]
[1644078496741,0.25461433,41690.0,41684.0,0.38586084]
[1644078497433,0.209985,41691.0,41684.0,0.38586084]
[1644078497934,0.109985,41691.0,41684.0,0.38586084]
[1644078498134,0.159985,41691.0,41684.0,0.38586084]
[1644078502490,0.159985,41691.0,41677.0,0.24573456]
[1644078503092,0.109985,41691.0,41677.0,0.24573456]
[1644078503291,0.059985,41691.0,41677.0,0.24573456]
[1644078503495,0.30558455,41694.0,41677.0,0.34573456]
[1644078503693,0.30558455,41697.0,41677.0,0.34573456]
[1644078503892,0.30558455,41697.0,41678.0,0.048]
[1644078504095,0.30558455,41698.0,41678.0,0.048]
[1644078504340,0.30558455,41698.0,41692.0,0.24820721]
[1644078504541,0.30558455,41699.0,41691.0,0.36107168]
[1644078505042,0.30558455,41699.0,41692.0,0.3]
[1644078505243,0.02021973,41698.0,41692.0,0.3]
[1644078505640,0.02021973,41698.0,41693.0,0.61198678]
[1644078507139,0.34318623,41704.0,41693.0,0.61198678]
[1644078507340,0.05,41702.0,41693.0,0.61198678]
[1644078507541,0.34318623,41704.0,41693.0,0.61198678]
[1644078507998,0.34318623,41704.0,41693.0,0.27815178]
[1644078508798,0.34318623,41704.0,41691.0,0.36107168]
[1644078508799,0.7,41691.0,41675.0,0.03610762]
[1644078508996,0.05,41676.0,41675.0,0.02910455]
[1644078509198,0.05,41676.0,41675.0,0.02414155]
[1644078509199,0.048,41676.0,41675.0,0.02414155]
[1644078509394,0.048,41676.0,41665.0,0.33789037]
[1644078509395,0.0072796,41672.0,41667.0,9.78e-06]
[1644078509596,0.20352086,41673.0,41665.0,0.132219]
[1644078509795,0.20352086,41673.0,41662.0,0.0522]
[1644078509796,0.21178226,41667.0,41662.0,0.0511]
[1644078509999,0.21178226,41667.0,41659.0,0.0041]
[1644078510000,0.20352086,41664.0,41654.0,0.05]
[1644078510195,0.32359386,41662.0,41654.0,0.05]
[1644078510398,0.32359386,41662.0,41648.0,0.0021]
[1644078510399,0.6004,41655.0,41648.0,0.0021]
[1644078510603,0.20352086,41658.0,41648.0,0.0021]
[1644078510604,0.6004,41650.0,41648.0,0.0021]
[1644078510795,0.1,41650.0,41648.0,0.0021]
[1644078510996,0.6484,41649.0,41645.0,0.0011]
[1644078511195,0.66790482,41646.0,41645.0,0.0011]
[1644078511396,0.71590482,41646.0,41645.0,0.0011]
[1644078511596,0.71590482,41646.0,41639.0,0.0751]
[1644078511848,0.6004,41645.0,41639.0,0.0751]
[1644078512050,0.6484,41644.0,41639.0,0.0751]
[1644078512246,0.6474,41644.0,41639.0,0.0751]
[1644078512445,1.05290374,41644.0,41639.0,0.0751]
[1644078512650,0.7,41643.0,41639.0,0.0751]
[1644078512849,0.1,41643.0,41639.0,0.0751]
[1644078513153,0.1,41643.0,41638.0,0.0011]
[1644078513154,0.7,41641.0,41638.0,0.0011]
[1644078513347,0.180206,41640.0,41638.0,0.0011]
[1644078513549,0.6004,41639.0,41638.0,0.0011]
[1644078513748,0.6473,41639.0,41638.0,0.0011]
[1644078513947,0.7473,41639.0,41638.0,0.0011]
[1644078514149,0.91218825,41639.0,41638.0,0.0011]
[1644078514749,0.91218825,41639.0,41634.0,0.28744198]
[1644078514950,0.31288825,41639.0,41634.0,0.28744198]
[1644078515250,0.148,41639.0,41634.0,0.28744198]
[1644078515496,0.148,41639.0,41628.0,1.14736877]
[1644078515701,0.148,41639.0,41629.0,0.333835]
[1644078516297,0.15,41639.0,41628.0,1.14736877]
[1644078516502,0.15,41639.0,41628.0,1.51435866]
[1644078516699,2.35929543,41640.0,41628.0,1.51435866]
[1644078516897,0.16488825,41639.0,41628.0,1.51435866]
[1644078517701,0.16488825,41639.0,41629.0,0.333835]
[1644078517900,0.1,41640.0,41639.0,0.00010054]
[1644078518100,0.048,41642.0,41639.0,0.00010054]
[1644078518800,0.048,41642.0,41635.0,0.29840429]
[1644078518801,0.048,41642.0,41635.0,0.29827413]
[1644078519000,0.048,41642.0,41628.0,1.14736877]
[1644078519743,0.060047,41648.0,41628.0,1.14736877]
[1644078519744,0.16488825,41651.0,41629.0,0.433835]
[1644078519942,0.16488825,41651.0,41631.0,0.05]
[1644078520145,0.58876141,41652.0,41634.0,0.15]
[1644078520345,0.58876141,41652.0,41635.0,0.048]
[1644078520543,0.06988949,41648.0,41635.0,0.048]
[1644078520746,0.58876141,41652.0,41629.0,0.4992]
[1644078520747,0.066471,41641.0,41629.0,0.4992]
[1644078520950,0.066471,41641.0,41630.0,0.333835]
[1644078521342,0.3177699,41640.0,41630.0,0.333835]
[1644078521543,0.3177699,41640.0,41633.0,0.25307095]
[1644078521743,0.060057,41639.0,41630.0,0.34399019]
[1644078522143,0.060057,41639.0,41628.0,0.93907554]
[1644078522743,0.07992801,41638.0,41630.0,0.20625667]
[1644078522991,0.060063,41635.0,41630.0,0.20625667]
[1644078523192,0.060063,41635.0,41633.0,0.3115936]
[1644078524292,0.060063,41635.0,41630.0,0.20625667]
[1644078524694,0.06006347,41636.0,41630.0,0.20625667]
[1644078525495,0.06006347,41636.0,41632.0,0.32718231]
[1644078526099,0.05,41635.0,41631.0,0.00026035]
[1644078526296,0.110064,41635.0,41629.0,0.00026035]
[1644078526495,0.110064,41635.0,41628.0,0.93907554]
[1644078526749,0.060064,41635.0,41628.0,0.93907554]
[1644078527240,0.060064,41635.0,41630.0,0.60668422]
[1644078528140,0.060064,41635.0,41631.0,0.333835]
[1644078528541,0.110064,41635.0,41631.0,0.333835]
[1644078528745,0.110064,41635.0,41630.0,0.60694457]
[1644078528746,0.060064,41635.0,41630.0,0.60694457]
[1644078528945,0.28924764,41639.0,41630.0,0.60694457]
[1644078528946,0.22918764,41639.0,41631.0,0.333835]
[1644078529145,0.22918764,41639.0,41631.0,0.33409535]
[1644078529344,0.22918764,41639.0,41632.0,0.2132404]
[1644078529543,0.22918764,41639.0,41633.0,0.333835]
[1644078529747,0.01860571,41647.0,41633.0,0.00026035]
[1644078529943,0.01860571,41647.0,41641.0,0.2985217]
[1644078530343,0.01860571,41647.0,41642.0,0.333835]
[1644078530790,0.01860571,41647.0,41642.0,0.33409535]
[1644078530989,0.01860571,41647.0,41643.0,0.19873814]
[1644078531191,0.22579827,41654.0,41645.0,0.2334851]
[1644078531394,0.0685899,41654.0,41645.0,0.2334851]
[1644078534000,0.06003233,41655.0,41645.0,0.2334851]
[1644078534248,0.160033,41658.0,41646.0,0.20529835]
[1644078534249,0.06002716,41658.0,41646.0,0.20529835]
[1644078534443,0.22964423,41662.0,41646.0,0.20529835]
[1644078534648,0.22964423,41662.0,41646.0,0.2055587]
[1644078534847,0.22964423,41662.0,41648.0,0.333835]
[1644078535043,0.22964423,41662.0,41650.0,0.35727063]
[1644078535443,0.22964423,41662.0,41650.0,0.35753098]
[1644078536345,0.22964423,41662.0,41650.0,0.00026035]
[1644078536346,0.05,41651.0,41650.0,0.00026035]
[1644078536552,0.05,41651.0,41636.0,0.25081978]
[1644078536747,0.08679844,41648.0,41636.0,0.44319174]
[1644078536950,0.08679844,41648.0,41644.0,0.02155684]
[1644078537648,0.14683899,41648.0,41644.0,0.02155684]
[1644078538109,0.05,41645.0,41644.0,0.02155684]
[1644078538705,0.110051,41645.0,41644.0,0.02155684]
[1644078539110,0.110051,41645.0,41638.0,0.33587371]
[1644078539306,0.110051,41645.0,41637.0,0.40671087]
[1644078539307,0.06005106,41643.0,41637.0,0.40671087]
[1644078539906,0.18679844,41648.0,41638.0,0.333835]
[1644078540106,0.18679844,41648.0,41644.0,0.38933505]
[1644078540306,0.05,41649.0,41644.0,0.38933505]
[1644078540505,0.05,41649.0,41634.0,0.23821586]
[1644078540910,0.05,41649.0,41635.0,0.02052612]
[1644078541110,0.05,41649.0,41636.0,0.333835]
[1644078541308,0.05,41649.0,41637.0,0.25016037]
[1644078541507,0.05,41649.0,41636.0,0.333835]
[1644078541755,0.05,41649.0,41637.0,0.23472626]
[1644078542046,0.05,41649.0,41635.0,0.02052612]
[1644078542047,0.39813703,41646.0,41635.0,0.02052612]
[1644078542246,0.44813703,41646.0,41635.0,0.02052612]
[1644078542447,0.49813703,41646.0,41635.0,0.02052612]
[1644078542748,0.1,41646.0,41635.0,0.02052612]
[1644078542948,0.1,41646.0,41639.0,0.20366045]
[1644078543146,0.1,41646.0,41635.0,0.02052612]
[1644078543545,0.47631901,41647.0,41635.0,0.02052612]
[1644078543946,0.47631901,41647.0,41634.0,0.37208604]
[1644078544146,0.47631901,41647.0,41629.0,0.23397654]
[1644078544147,0.33785957,41640.0,41629.0,0.23397654]
[1644078544352,0.06005763,41637.0,41630.0,0.333835]
[1644078544546,0.06005763,41637.0,41631.0,0.333835]
[1644078544845,0.06005763,41637.0,41629.0,0.333835]
[1644078545246,0.06005763,41637.0,41633.0,0.22122801]
[1644078545496,0.17104347,41640.0,41634.0,0.333835]
[1644078545695,0.17104347,41640.0,41633.0,0.22122801]
[1644078545894,0.07104347,41640.0,41633.0,0.22122801]
[1644078546295,0.060058,41639.0,41632.0,0.32014671]
[1644078548998,0.40849284,41640.0,41632.0,0.32014671]
[1644078549253,0.30849284,41640.0,41632.0,0.32014671]
[1644078549447,0.07104347,41640.0,41632.0,0.32014671]
[1644078550642,2.5261482,41640.0,41632.0,0.32014671]
[1644078550842,2.6761482,41640.0,41632.0,0.32014671]
[1644078551442,0.23056286,41638.0,41632.0,0.32014671]
[1644078551743,0.06005464,41637.0,41630.0,0.2477437]
[1644078551942,0.06005464,41637.0,41629.0,0.0002598]
[1644078552147,0.06005464,41637.0,41628.0,0.93907554]
[1644078552996,0.06005464,41637.0,41629.0,0.60471244]
[1644078553195,0.06005464,41637.0,41629.0,0.20247809]
[1644078553396,0.06005464,41637.0,41629.0,0.0002598]
[1644078553597,0.06005464,41637.0,41628.0,0.93907554]
[1644078554297,0.06005464,41637.0,41629.0,0.23684183]
[1644078554497,0.06005464,41637.0,41629.0,0.23710163]
[1644078555098,0.06005464,41637.0,41630.0,0.333835]
[1644078555297,0.06005464,41637.0,41630.0,0.3340948]
[1644078557443,0.06005464,41637.0,41633.0,0.3789277]
[1644078557645,0.36292033,41641.0,41633.0,0.3789277]
[1644078557846,0.16004867,41641.0,41633.0,0.3789277]
[1644078558646,0.14065618,41641.0,41633.0,0.3789277]
[1644078559247,0.34352784,41641.0,41630.0,0.0002598]
[1644078559447,0.34352784,41641.0,41629.0,0.23710163]
[1644078559448,0.060057,41638.0,41629.0,0.23710163]
[1644078559648,2.37737352,41637.0,41629.0,0.23710163]
[1644078559854,0.06005814,41636.0,41629.0,0.23710163]
[1644078560348,0.07662548,41634.0,41630.0,0.333835]
[1644078560591,0.07662548,41634.0,41630.0,0.3340948]
[1644078560792,0.07662548,41634.0,41630.0,0.333835]
[1644078561393,0.06005814,41636.0,41630.0,0.58371184]
[1644078562591,0.06005814,41636.0,41630.0,0.333835]
[1644078563593,0.06344333,41635.0,41630.0,0.333835]
[1644078563796,0.06332682,41635.0,41630.0,0.333835]
[1644078563995,0.06005814,41636.0,41630.0,0.333835]
[1644078566745,0.06005814,41636.0,41629.0,0.0002598]
[1644078566946,0.06005814,41636.0,41630.0,0.333835]
[1644078567550,0.06005814,41636.0,41630.0,0.3340948]
[1644078569104,0.06005814,41636.0,41630.0,0.0002598]
[1644078569304,0.06005814,41636.0,41631.0,0.334252]
[1644078570305,0.06005814,41636.0,41629.0,0.0002598]
[1644078570506,0.05,41635.0,41630.0,0.334252]
[1644078571106,0.05,41635.0,41630.0,0.3345118]
[1644078572143,0.11006,41635.0,41630.0,0.3345118]
[1644078572342,0.05,41635.0,41630.0,0.3345118]
[1644078572542,0.05,41635.0,41630.0,0.334252]
[1644078576097,0.049,41635.0,41630.0,0.335252]
[1644078576396,0.06005814,41636.0,41630.0,0.335252]
[1644078576898,0.060059,41635.0,41630.0,0.334252]
[1644078578098,0.06005814,41636.0,41630.0,0.334252]
[1644078579543,0.06005814,41636.0,41630.0,0.335252]
[1644078579746,0.060055,41638.0,41633.0,0.001]
[1644078579747,0.06004903,41638.0,41633.0,0.001]
[1644078580044,0.35458455,41645.0,41636.0,0.001]
[1644078580045,0.20287166,41644.0,41636.0,0.001]
[1644078580242,0.20287166,41644.0,41635.0,0.27212097]
[1644078580551,0.20287166,41643.0,41635.0,0.27212097]
[1644078580744,0.20287166,41643.0,41639.0,0.22933568]
[1644078580945,0.20287166,41643.0,41640.0,0.2408456]
[1644078581143,0.20287166,41644.0,41640.0,0.23854986]
[1644078581545,0.20287166,41644.0,41637.0,0.26396958]
[1644078581746,0.06003957,41645.0,41635.0,0.26721902]
[1644078581747,0.20287166,41643.0,41635.0,0.26721902]
[1644078582044,0.30558455,41647.0,41635.0,0.26721902]
[1644078582045,0.049,41639.0,41635.0,0.26695922]
[1644078582244,0.049,41639.0,41633.0,0.0002598]
[1644078582546,0.06004867,41639.0,41636.0,0.19914262]
[1644078582746,0.20287166,41640.0,41636.0,0.19914262]
[1644078583001,0.30287166,41641.0,41636.0,0.19914262]
[1644078583205,0.30287166,41641.0,41636.0,0.19940242]
[1644078583400,0.20287166,41641.0,41636.0,0.19940242]
[1644078583602,0.20287166,41642.0,41636.0,0.19940242]
[1644078583804,0.20287166,41642.0,41636.0,0.19914262]
[1644078583805,0.049,41641.0,41636.0,0.19914262]
[1644078586006,0.31191966,41641.0,41635.0,0.25041138]
[1644078586206,0.43202124,41641.0,41635.0,0.25041138]
[1644078586407,0.53202124,41641.0,41635.0,0.25041138]
[1644078587446,0.26292212,41640.0,41635.0,0.25041138]
[1644078587645,0.16292212,41640.0,41635.0,0.25041138]
[1644078588450,0.049,41639.0,41635.0,0.25041138]
[1644078588646,0.16292212,41640.0,41635.0,0.25041138]
[1644078589245,0.22297258,41640.0,41635.0,0.25041138]
[1644078590495,0.049,41638.0,41635.0,0.25041138]
[1644078590896,0.22297258,41640.0,41635.0,0.25041138]
[1644078591296,0.27197258,41640.0,41635.0,0.25041138]
[1644078591496,0.22297258,41640.0,41635.0,0.25041138]
[1644078596145,0.049,41638.0,41635.0,0.25041138]
[1644078596946,0.049,41638.0,41636.0,0.23845925]
[1644078597146,0.049,41638.0,41635.0,0.25041138]
[1644078597347,0.22297258,41640.0,41635.0,0.25041138]
[1644078597548,0.049,41638.0,41635.0,0.25041138]
[1644078597747,0.22297258,41640.0,41635.0,0.25035061]
[1644078598500,0.06005046,41640.0,41635.0,0.25035061]
[1644078599400,0.06005046,41640.0,41634.0,0.0425343]
[1644078599600,0.06005046,41640.0,41635.0,0.15148182]
[1644078600001,0.06005046,41640.0,41635.0,0.15248182]
[1644078600402,0.2229639,41642.0,41635.0,0.15248182]
[1644078600630,0.2229639,41642.0,41639.0,0.37228087]
[1644078600803,0.06004178,41642.0,41639.0,0.37228087]
[1644078601205,0.2229639,41642.0,41639.0,0.37228087]
[1644078601413,0.2229639,41642.0,41635.0,0.001]
[1644078602448,0.2229639,41642.0,41635.0,0.35985179]
[1644078603749,0.2229639,41642.0,41635.0,0.34985179]
[1644078603955,0.06004178,41642.0,41635.0,0.34985179]
[1644078604349,0.06004178,41642.0,41635.0,0.55594562]
[1644078604750,0.11004178,41642.0,41635.0,0.55594562]
[1644078605152,0.16292212,41641.0,41635.0,0.34985179]
[1644078606401,0.0600453,41640.0,41635.0,0.34985179]
[1644078607300,0.0600453,41640.0,41635.0,0.51397217]
[1644078607699,0.0600417,41642.0,41635.0,0.51397217]
[1644078608099,0.0600417,41642.0,41635.0,0.720066]
[1644078608902,0.22296382,41642.0,41638.0,0.0141265]
[1644078609106,0.06004567,41640.0,41638.0,0.028253]
[1644078609754,0.16292212,41641.0,41638.0,0.028253]
[1644078610551,0.22296451,41642.0,41638.0,0.028253]
[1644078612554,0.16292212,41641.0,41638.0,0.028253]
[1644078613805,0.22297012,41641.0,41638.0,0.028253]
[1644078614007,0.22297012,41641.0,41631.0,0.20609383]
[1644078614008,0.21292212,41639.0,41631.0,0.20609383]
[1644078614210,0.20393087,41636.0,41629.0,0.1143598]
[1644078614414,0.58740947,41636.0,41635.0,0.0141265]
[1644078614606,0.5,41635.0,41629.0,0.0002598]
[1644078614805,0.24981947,41630.0,41629.0,0.0002598]
[1644078615006,0.31995547,41630.0,41629.0,0.0002598]
[1644078615206,0.150906,41630.0,41628.0,0.93907554]
[1644078615407,0.19083862,41630.0,41628.0,0.93907554]
[1644078616207,0.16006862,41630.0,41628.0,0.93907554]
[1644078616409,0.04083862,41630.0,41628.0,0.93907554]
[1644078616851,0.02713862,41630.0,41628.0,0.93907554]
[1644078617056,0.08720562,41630.0,41628.0,0.93907554]
[1644078618853,0.08720562,41630.0,41628.0,1.30402053]
[1644078619252,0.08720562,41630.0,41629.0,0.0141265]
[1644078620055,0.02713862,41630.0,41629.0,0.0141265]
[1644078621902,0.05790862,41630.0,41629.0,0.0141265]
[1644078622104,0.28963585,41630.0,41629.0,0.0141265]
[1644078622501,0.33963585,41630.0,41629.0,0.0141265]
[1644078622901,0.43963585,41630.0,41629.0,0.0141265]
[1644078623502,0.45622047,41630.0,41629.0,0.0141265]
[1644078625152,0.50622047,41630.0,41629.0,0.0141265]
[1644078627557,0.43963585,41630.0,41629.0,0.0141265]
[1644078629309,0.43963585,41630.0,41628.0,0.39276059]
[1644078629509,0.060068,41629.0,41628.0,0.39276059]
[1644078631857,0.20790862,41630.0,41628.0,0.39276059]
[1644078632359,0.10790862,41630.0,41628.0,0.39276059]
[1644078632761,0.05,41629.0,41628.0,0.39276059]
[1644078634358,0.11613135,41629.0,41628.0,0.39276059]
[1644078636506,0.05,41629.0,41628.0,0.39276059]
[1644078639958,0.08077,41629.0,41628.0,0.39276059]
[1644078640155,0.05,41629.0,41628.0,0.39276059]
[1644078648955,0.03077,41629.0,41628.0,0.39276059]
[1644078649157,0.0710753,41630.0,41628.0,0.39276059]
[1644078650355,0.1210753,41630.0,41628.0,0.39276059]
[1644078650617,0.1073753,41630.0,41628.0,0.39276059]
[1644078651217,0.16744392,41630.0,41628.0,0.39276059]
[1644078654456,0.37134957,41630.0,41628.0,0.39276059]
[1644078654954,0.30390565,41630.0,41628.0,0.39276059]
[1644078655153,0.1,41630.0,41628.0,0.39276059]
[1644078655353,0.03077,41629.0,41628.0,0.39276059]
[1644078656354,0.27908522,41629.0,41628.0,0.38776059]
[1644078656555,0.03077,41629.0,41628.0,0.38776059]
[1644078657462,0.23467565,41629.0,41628.0,0.38776059]
[1644078658120,0.20390565,41629.0,41628.0,0.38776059]
[1644078658321,0.70401542,41630.0,41628.0,0.38776059]
[1644078658726,0.03077,41629.0,41628.0,0.38776059]
[1644078659221,0.03077,41629.0,41624.0,0.13039922]
[1644078659421,0.11007112,41626.0,41623.0,0.621888]
[1644078659621,0.11007112,41626.0,41624.0,0.334252]
[1644078660023,0.30438602,41627.0,41624.0,0.334252]
[1644078660423,0.30438602,41627.0,41623.0,0.621888]
[1644078660826,0.20438602,41627.0,41623.0,0.621888]
[1644078661126,0.30438602,41627.0,41623.0,0.621888]
[1644078661758,0.060074,41626.0,41623.0,0.621888]
[1644078661953,0.12014301,41625.0,41623.0,0.621888]
[1644078662151,0.12014301,41625.0,41624.0,0.334252]
[1644078662352,0.30438602,41627.0,41626.0,0.03571459]
[1644078663356,0.26445602,41627.0,41626.0,0.03571459]
[1644078663557,0.36445602,41627.0,41626.0,0.03571459]
[1644078664358,0.30438602,41627.0,41626.0,0.03571459]
[1644078664758,0.20438602,41627.0,41626.0,0.03571459]
[1644078664958,0.30438602,41627.0,41626.0,0.03571459]
[1644078665604,0.26445602,41627.0,41626.0,0.03571459]
[1644078666003,0.20438602,41627.0,41626.0,0.03571459]
[1644078666805,0.060071,41627.0,41626.0,0.03571459]
[1644078667203,0.110071,41627.0,41626.0,0.03571459]
[1644078667804,0.060071,41627.0,41626.0,0.03571459]
[1644078668006,0.110071,41627.0,41626.0,0.03571459]
[1644078669351,1.55715141,41626.0,41623.0,0.621888]
[1644078669552,1.8216548,41626.0,41623.0,0.621888]
[1644078670855,1.76158492,41626.0,41623.0,0.621888]
[1644078671956,1.82165479,41626.0,41623.0,0.621888]
[1644078673002,0.16497085,41625.0,41623.0,0.621888]
[1644078674805,0.16497085,41625.0,41624.0,0.0001546]
[1644078675503,0.22504188,41625.0,41624.0,0.0001546]
[1644078677353,0.22504188,41625.0,41623.0,0.621888]
[1644078677554,0.22504188,41625.0,41623.0,0.6170426]
[1644078681107,0.28511388,41625.0,41623.0,0.6170426]
[1644078681914,0.22504188,41625.0,41623.0,0.6170426]
[1644078682511,0.16497085,41625.0,41623.0,0.6170426]
[1644078683511,0.22504177,41625.0,41623.0,0.6170426]
[1644078685758,0.36944521,41625.0,41623.0,0.6170426]
[1644078689007,0.20447436,41624.0,41623.0,0.6170426]
[1644078689407,0.20447436,41624.0,41623.0,0.06703014]
[1644078694158,0.20447436,41624.0,41623.0,0.06203014]
[1644078695162,0.36944521,41625.0,41623.0,0.06203014]
[1644078697019,0.36444521,41625.0,41623.0,0.06203014]
[1644078698219,0.36444521,41625.0,41623.0,0.05703014]
[1644078698421,0.15997085,41625.0,41623.0,0.05703014]
[1644078699024,0.15997085,41625.0,41624.0,0.28520316]
[1644078699271,1.55755141,41626.0,41624.0,0.32838616]
[1644078699464,1.55755141,41626.0,41625.0,0.61105093]
[1644078699762,1.55755141,41626.0,41625.0,0.37950686]
[1644078700563,1.55755141,41626.0,41625.0,0.32950686]
[1644078700963,1.77122245,41626.0,41624.0,0.0002598]
[1644078701165,1.55755141,41626.0,41623.0,0.05728994]
[1644078701364,1.76202577,41626.0,41623.0,0.05703014]
[1644078701963,1.55755141,41626.0,41623.0,0.05703014]
[1644078702766,1.55755141,41626.0,41623.0,0.05728994]
[1644078703015,1.55755141,41626.0,41625.0,0.2062197]
[1644078703211,1.55755141,41626.0,41625.0,0.28485663]
[1644078704010,0.0004,41626.0,41625.0,0.28485663]
[1644078704311,0.0004,41626.0,41625.0,0.60910863]
[1644078704711,0.0004,41626.0,41625.0,0.65910863]
[1644078706112,0.0004,41626.0,41625.0,0.98934733]
[1644078706315,0.0004,41626.0,41625.0,1.03934733]
[1644078707760,0.0004,41626.0,41625.0,1.34519842]
[1644078707961,0.0004,41626.0,41625.0,1.35194155]
[1644078708165,0.0004,41626.0,41625.0,1.45194155]
[1644078709360,3.008e-05,41626.0,41625.0,1.16650994]
[1644078710260,3.008e-05,41626.0,41625.0,0.85720863]
[1644078713321,3.008e-05,41626.0,41625.0,1.1147571]
[1644078714368,3.008e-05,41626.0,41625.0,0.85720863]
[1644078716369,3.008e-05,41626.0,41625.0,1.11440788]
[1644078716567,3.008e-05,41626.0,41625.0,0.85695553]
[1644078718010,3.008e-05,41626.0,41625.0,0.91464206]
[1644078718211,3.008e-05,41626.0,41625.0,0.81505775]
[1644078719011,3.008e-05,41626.0,41625.0,0.60910863]
[1644078719212,3.008e-05,41626.0,41625.0,0.70910863]
[1644078719411,0.08705863,41638.0,41632.0,0.34243162]
[1644078719811,0.23057393,41633.0,41632.0,0.34243162]
[1644078720011,0.05,41635.0,41632.0,0.34243162]
[1644078720413,0.20411956,41641.0,41633.0,0.3]
[1644078720616,0.20411956,41641.0,41632.0,0.34243162]
[1644078720813,0.20411956,41643.0,41633.0,0.4]
[1644078721013,0.22445032,41643.0,41638.0,0.23586229]
[1644078722659,0.22445032,41643.0,41633.0,0.47286457]
[1644078723261,0.20411956,41644.0,41633.0,0.47286457]
[1644078723462,0.22255743,41645.0,41633.0,0.47286457]
[1644078723661,0.24318721,41645.0,41633.0,0.47286457]
[1644078723866,0.22474934,41645.0,41633.0,0.47286457]
[1644078724361,0.20984431,41644.0,41639.0,0.22130709]
[1644078724563,0.20984431,41644.0,41640.0,0.24078544]
[1644078724961,0.20984431,41644.0,41634.0,0.28991174]
[1644078726110,0.02077135,41645.0,41635.0,0.0481]
[1644078726309,0.02077135,41645.0,41636.0,0.334252]
[1644078726512,0.02077135,41645.0,41637.0,0.3481]
[1644078726706,0.02077135,41645.0,41638.0,0.384252]
[1644078726908,0.02077135,41645.0,41644.0,0.2373565]
[1644078727206,0.02077135,41645.0,41643.0,0.42987448]
[1644078728009,0.25006189,41649.0,41643.0,0.42987448]
[1644078728408,0.25006189,41649.0,41644.0,0.24355095]
[1644078728807,0.25006189,41649.0,41645.0,0.05]
[1644078729272,0.05,41647.0,41644.0,0.24355095]
[1644078730063,0.05,41647.0,41640.0,0.26215012]
[1644078730262,0.05,41647.0,41640.0,0.36215012]
[1644078730662,0.05,41646.0,41640.0,0.36215012]
[1644078731065,0.05,41646.0,41642.0,0.21847141]
[1644078731263,0.05,41646.0,41642.0,0.26847141]
[1644078731566,0.25006189,41649.0,41642.0,0.26847141]
[1644078731763,0.25006189,41649.0,41643.0,0.24390454]
[1644078732563,0.05,41650.0,41645.0,0.31771925]
[1644078733007,0.05,41650.0,41646.0,0.24321924]
[1644078733208,0.02056267,41651.0,41646.0,0.24147597]
[1644078733906,0.548,41654.0,41646.0,0.24147597]
[1644078734308,0.77081404,41655.0,41646.0,0.24147597]
[1644078734508,0.72081404,41655.0,41646.0,0.51793586]
[1644078734808,0.05,41654.0,41646.0,0.51793586]
[1644078735008,0.72081404,41655.0,41646.0,0.56793586]
[1644078735208,0.05,41651.0,41646.0,0.56793586]
[1644078736408,0.70007618,41655.0,41646.0,0.56793586]
[1644078736616,0.05,41654.0,41646.0,0.56793586]
[1644078736860,0.05,41651.0,41646.0,0.56793586]
[1644078737659,0.05,41651.0,41646.0,0.29147597]
[1644078737861,0.05,41651.0,41643.0,0.27552816]
[1644078738759,0.05,41651.0,41646.0,0.22336576]
[1644078738962,0.05,41651.0,41647.0,0.24979806]
[1644078739561,0.05,41651.0,41647.0,0.24969973]
[1644078740609,0.05,41651.0,41646.0,0.27336576]
[1644078740808,0.05,41651.0,41647.0,0.24561191]
[1644078742009,0.05,41651.0,41646.0,0.27336576]
[1644078742210,0.05,41651.0,41646.0,0.05]
[1644078742410,0.05,41651.0,41643.0,0.26610275]
[1644078742411,0.05,41651.0,41643.0,0.31610275]
[1644078743214,0.05,41651.0,41645.0,0.2750658]
[1644078743414,0.05,41651.0,41646.0,0.2572114]
[1644078743613,0.05,41651.0,41646.0,0.3072114]
[1644078745662,0.05,41651.0,41646.0,0.2572114]
[1644078745963,0.93131319,41655.0,41646.0,0.2572114]
[1644078746161,0.05,41652.0,41646.0,0.2572114]
[1644078747661,0.05,41652.0,41645.0,0.2750658]
[1644078748115,0.05,41647.0,41643.0,0.1669]
[1644078748314,0.05,41647.0,41643.0,0.05]
[1644078749517,0.05,41647.0,41640.0,0.39931908]
[1644078749721,0.23264395,41648.0,41640.0,0.39931908]
[1644078750718,0.23264395,41648.0,41641.0,0.27594447]
[1644078751322,0.23264395,41648.0,41641.0,0.05]
[1644078751522,0.23264395,41648.0,41640.0,0.44931908]
[1644078751765,0.05,41645.0,41642.0,0.334252]
[1644078752269,0.05,41645.0,41638.0,0.31631982]
[1644078752270,0.05,41645.0,41638.0,0.36631982]
[1644078752459,0.07427799,41642.0,41639.0,0.334252]
[1644078752662,0.05,41645.0,41639.0,0.334252]
[1644078752863,0.05,41645.0,41639.0,0.384252]
[1644078753061,0.05,41645.0,41642.0,0.28740066]
[1644078754964,0.05,41645.0,41643.0,0.334252]
[1644078755614,0.05,41645.0,41642.0,0.28740066]
[1644078756614,0.05,41645.0,41643.0,0.334252]
[1644078757017,0.05,41645.0,41642.0,0.28740066]